fUSD/lending_fUSD_20240205
["ID","MTS","AMOUNT","RATE_DAILY","PERIOD"]
[313299877,1707118241068,-2259.80024943,0.0003778,2]
[313299878,1707118241113,-544.13000421,0.0003778,2]
[313299879,1707118241125,-2624.06365033,0.0003778,2]
[313299880,1707118241136,-4817.97615096,0.0003778,2]
[313299881,1707118241146,-500.0,0.0003778,2]
[313299882,1707118241155,-500.0,0.0003778,2]
[313299883,1707118241165,-500.0,0.0003778,2]
[313299884,1707118241175,-961.40695662,0.0003778,8]
[313299885,1707118241184,-164.72211674,0.0003778,2]
[313299886,1707118241193,-155.62723127,0.00037869,2]
[313299887,1707118241203,-179.96646652,0.00037869,4]
[313299888,1707118241213,-299.31982973,0.00037869,4]
[313299889,1707118241222,-156.11025648,0.00037869,4]
[313299890,1707118241231,-189.40059501,0.0003787,2]
[313299891,1707118241241,-155.0,0.00037878,4]
[313299892,1707118241252,-217.76910486,0.00037878,4]
[313299893,1707118241263,-218.23872081,0.00037878,2]
[313299894,1707118241272,-204.7712179,0.00037878,4]
[313299895,1707118241282,-267.56927391,0.00037878,4]
[313299896,1707118241291,-447.5188044,0.00037878,2]
[313299897,1707118241301,-268.90933384,0.00037878,4]
[313299898,1707118241311,-228.83425128,0.00037878,4]
[313299899,1707118241320,-156.27896924,0.00037878,4]
[313299900,1707118241331,-155.62745402,0.00037878,4]
[313299901,1707118241340,-233.6686873,0.00037878,4]
[313299902,1707118241349,-365.41587174,0.00037878,4]
[313299903,1707118241359,-156.12756991,0.00037878,4]
[313299904,1707118241368,-156.18810019,0.00037878,4]
[313299905,1707118241377,-606.01077622,0.00037878,4]
[313299906,1707118241387,-500.0,0.00037878,30]
[313299907,1707118241396,-277.09025938,0.00037878,2]
[313299908,1707118241406,-155.94824206,0.00037878,2]
[313299909,1707118241415,-291.6711707,0.00037878,4]
[313299910,1707118241425,-317.5731817,0.00037878,4]
[313299911,1707118241434,-310.0,0.00037878,4]
[313299912,1707118241443,-916.51819617,0.00037879,2]
[313299913,1707118241452,-188127.45815015,0.0003788,2]
[313299914,1707118241464,-3631.27884491,0.0003788,2]
[313299936,1707118244647,-611.01213078,0.00037879,2]
[313299938,1707118244657,-407.22345686,0.0003788,2]
[313299948,1707119239356,-150.0,0.000276,2]
[313299949,1707119239377,-155.0,0.0003,2]
[313299950,1707119239397,-2165.95090185,0.00033499,4]
[313299951,1707119239417,-6051.93504294,0.00033499,4]
[313299952,1707119239436,-1000.0,0.000335,2]
[313299953,1707119239455,-152.23708813,0.00033742,2]
[313299954,1707119239475,-326.38,0.00034443,2]
[313299955,1707119239663,-156.84723313,0.00034488,2]
[313299956,1707119239685,-2497.0,0.000347,3]
[313299957,1707119239709,-18146.99796797,0.00034742,10]
[313299958,1707119239733,-9197.65176598,0.00034742,10]
[313299959,1707119255559,-579.43779013,0.00034742,10]
[313299960,1707119255583,-1420.56220987,0.00034742,10]
[313299961,1707119264894,-2000.0,0.00034742,10]
[313299962,1707119276957,-2000.0,0.00034742,10]
[313299963,1707119312811,-150.0,0.000294,2]
[313299981,1707119431468,-155.0,0.00034737,4]
[313299982,1707119431477,-155.0,0.00034738,2]
[313299983,1707119431487,-47.61614109,0.00034739,4]
[313299984,1707119431498,-993.79654298,0.00034739,4]
[313299985,1707119431510,-1124.53821778,0.00034739,4]
[313299986,1707119431518,-1000.0,0.0003474,2]
[313299987,1707119431531,-596.41887718,0.00034742,10]
[313299988,1707119431542,-6968.84925178,0.00034742,10]
[313299989,1707119431552,-566.4447676,0.00034742,10]
[313299990,1707119431563,-2464.8213102,0.00034742,10]
[313299991,1707119431574,-2929.20380186,0.00034742,10]
[313299992,1707119431586,-8602.4472,0.00034742,10]
[313299993,1707119431598,-987.38231631,0.00034742,10]
[313299994,1707119431645,-2835.90736374,0.00034742,10]
[313299995,1707119431659,-679.53068064,0.00034742,10]
[313299996,1707119431702,-574.91437406,0.00034742,10]
[313299997,1707119431712,-26.46411937,0.00034742,10]
[313299998,1707119431723,-689.69984682,0.00034742,10]
[313299999,1707119431759,-754.403005,0.00034742,10]
[313300000,1707119431771,-3444.14763646,0.00034742,10]
[313300001,1707119431782,-407.62973588,0.00034742,2]
[313300002,1707119431794,-92.37026412,0.00034742,2]
[313300003,1707119431803,-13253.76220682,0.000348,3]
[313300004,1707119431814,-3129.86476,0.000348,3]
[313300006,1707119431827,-2733.37303318,0.000348,3]
[313300008,1707119431836,-208.0,0.00035666,2]
[313300010,1707119431845,-178.85,0.00036022,2]
[313300012,1707119431854,-165.92,0.00036035,2]
[313300013,1707119431863,-250.0,0.00036298,2]
[313300014,1707119431872,-158.0,0.00036382,2]
[313300015,1707119431881,-500.91,0.00036453,2]
[313300016,1707119431890,-301.82115526,0.00036453,14]
[313300017,1707119431899,-697.6,0.00036488,2]
[313300018,1707119431909,-150.0,0.00036544,2]
[313300019,1707119431917,-326.38,0.00036707,2]
[313300021,1707119431927,-302.4,0.00036757,2]
[313300023,1707119431936,-1423.43146072,0.00037499,4]
[313300025,1707119431945,-1850.82561689,0.000375,3]
[313300026,1707119431957,-5123.51393727,0.000375,3]
[313300027,1707119431968,-25.66044584,0.000375,3]
[313300028,1707119431978,-151.14314895,0.00037501,2]
[313300029,1707119431987,-395.44160434,0.0003751,2]
[313300054,1707119437790,-362.33147767,0.0003751,2]
[313300055,1707119437810,-617.58293271,0.0003751,2]
[313300112,1707119440989,-1383.42159617,0.0003751,2]
[313300113,1707119441001,-665.65737055,0.0003751,2]
[313300120,1707119444323,-155.0,0.00037509,2]
[313300121,1707119444332,-223.95273826,0.00037509,2]
[313300126,1707119445476,-263.04335995,0.00037509,2]
[313300127,1707119445488,-403.63830458,0.00037509,2]
[313300128,1707119445497,-180.14,0.00037509,4]
[313300129,1707119445506,-925.64419528,0.0003751,2]
[313300130,1707119445516,-1457.16940724,0.00037574,2]
[313300131,1707119445527,-465.17133714,0.00037574,2]
[313300132,1707119445540,-4708.11446346,0.00037574,2]
[313300133,1707119445608,-44503.70779216,0.00037574,2]
[313300134,1707119445618,-200.0,0.00037577,5]
[313300135,1707119445627,-800.0,0.00037577,5]
[313300136,1707119445636,-150.0,0.0003763,2]
[313300137,1707119445646,-1643.3607,0.00037778,2]
[313300138,1707119445657,-511.5139,0.0003778,2]
[313300139,1707119445666,-587.6927,0.0003778,2]
[313300140,1707119445676,-164.72211673,0.0003778,2]
[313300141,1707119445685,-248.42860065,0.00037869,4]
[313300142,1707119445695,-189.40059502,0.0003787,2]
[313300143,1707119445704,-648.22052947,0.00037874,14]
[313300144,1707119445714,-2393.9355913,0.00037874,2]
[313300145,1707119445723,-4714.496113,0.00037874,2]
[313300146,1707119445735,-73588.94561897,0.00037874,2]
[313300147,1707119445832,-4249.38179999,0.00037874,2]
[313300148,1707119445844,-3890.18937244,0.00037874,2]
[313300155,1707119465092,724.73,0.00025,120]
[313300156,1707119582316,46000.0,0.00022998,2]
[313300159,1707120149448,152.23708813,0.00021998,2]
[313300203,1707120317910,5772.35,0.00022501,2]
[313300215,1707120431823,-2000.0,0.00022998,2]
[313300217,1707120438666,-2000.0,0.00022998,2]
[313300218,1707120445911,-2000.0,0.00022998,2]
[313300219,1707120452385,-2000.0,0.00022998,2]
[313300221,1707120459584,-2000.0,0.00022998,2]
[313300223,1707120484740,-3850.0,0.00022998,2]
[313300224,1707120494903,-35000.0,0.00022998,2]
[313300226,1707120501502,-1000.0,0.00022998,2]
[313300227,1707120508214,-1000.0,0.00022998,2]
[313300247,1707120633377,-581.05201229,0.00022998,2]
[313300248,1707120633389,-7063.62211604,0.00022998,2]
[313300249,1707120633401,-3358.67127474,0.00022998,2]
[313300250,1707120633431,-1120.32492377,0.00022998,2]
[313300251,1707120633488,-1032.05682951,0.00022998,2]
[313300252,1707120633548,-250.0,0.00022998,2]
[313300253,1707120633607,-4403.19644409,0.00022998,2]
[313300254,1707120633617,-156.84723313,0.000259,2]
[313300255,1707120633627,-1612.08631409,0.00026,2]
[313300256,1707120633636,-156.8472331,0.00027896,2]
[313300257,1707120633646,-156.8472331,0.00029891,2]
[313300258,1707120633656,-150.0,0.0003,2]
[313300259,1707120633665,-155.0,0.00031886,2]
[313300260,1707120633674,-156.8472331,0.00031887,2]
[313300261,1707120633684,-287.92890319,0.00032666,14]
[313300262,1707120633693,-208.0,0.00032666,2]
[313300263,1707120633703,-156.8472331,0.00033883,2]
[313300264,1707120633712,-1000.0,0.00034374,2]
[313300265,1707120633722,-325.34,0.00034376,2]
[313300266,1707120633731,-9554.21217309,0.000347,3]
[313300267,1707120633742,-3851.77737234,0.000347,3]
[313300268,1707120633755,-3987.01045457,0.000347,3]
[313300269,1707120633765,-2497.0,0.000347,3]
[313300270,1707120633774,-8064.49542084,0.00034742,10]
[313300275,1707120638537,-150.0,0.0003,2]
[313300276,1707120638546,-578.10015642,0.00034742,10]
[313300277,1707120638558,-741.27723955,0.00034742,10]
[313300278,1707120638569,-420.8888349,0.00034742,10]
[313300279,1707120638579,-296.21024533,0.00034742,10]
[313300280,1707120638590,-4291.43187344,0.00034742,10]
[313300536,1707120641190,-50693.90518801,0.00034742,10]
[313300538,1707120641199,-3254.31544792,0.00034742,10]
[313300540,1707120641208,-6945.65346649,0.00034742,10]
[313300542,1707120641217,-8341.79785845,0.00034742,10]
[313300544,1707120641226,-8104.59432089,0.00034742,10]
[313300546,1707120641235,-178.84,0.0003581,2]
[313300548,1707120641244,-473.52,0.00035815,2]
[313300550,1707120641253,-441.92,0.00035842,2]
[313300552,1707120641263,-156.8472331,0.00035878,2]
[313300554,1707120641272,-158.0,0.00036002,2]
[313300556,1707120641281,-208.0,0.00036083,9]
[313300558,1707120641290,-2186.48,0.00036317,4]
[313300560,1707120641299,-1051.4,0.00036359,2]
[313300562,1707120641308,-250.0,0.00036376,2]
[313300564,1707120641318,-165.92,0.00036405,2]
[313300566,1707120641327,-150.0,0.00036468,2]
[313300568,1707120641337,-558.08,0.00036527,2]
[313300570,1707120641346,-325.34,0.0003664,2]
[313300572,1707120641356,-167.83,0.00036735,2]
[313300574,1707120641365,-522.26401275,0.000373,14]
[313300576,1707120641374,-1019.0,0.000373,7]
[313300578,1707120641384,-1000.0,0.000373,7]
[313300580,1707120641393,-473.52,0.00037459,2]
[313300582,1707120641403,-11691.38650683,0.00037499,2]
[313300584,1707120641412,-460.75544325,0.00037499,4]
[313300586,1707120641421,-151.14314895,0.00037501,2]
[313300589,1707120641431,-338.00307703,0.00037501,30]
[313300590,1707120641440,-800.0,0.00037576,5]
[313300593,1707120641449,-500.0,0.00037577,2]
[313300595,1707120641459,-200.0,0.00037577,5]
[313300596,1707120641468,-800.0,0.00037577,5]
[313300599,1707120641479,-150.0,0.00037577,2]
[313300600,1707120641489,-150.0,0.00037584,2]
[313300603,1707120641498,-430.655,0.00037774,2]
[313300605,1707120641508,-914.93675206,0.00037774,8]
[313300606,1707120641517,-587.6927,0.00037778,2]
[313300607,1707120641526,-1643.3607,0.00037778,2]
[313300608,1707120641536,-7213.75016082,0.0003778,2]
[313300609,1707120641552,-323.80874896,0.0003778,2]
[313300610,1707120641563,-1294.2,0.0003778,2]
[313300670,1707120642721,-3443.33488114,0.0003778,2]
[313300671,1707120642779,-32228.61400908,0.0003778,2]
[313300672,1707120642788,-164.72211673,0.0003778,2]
[313300673,1707120642797,-3753.96642615,0.000378,30]
[313300674,1707120642809,-4185.45380288,0.000378,30]
[313300675,1707120642821,-3525.11507072,0.000378,30]
[313300676,1707120642832,-5030.20120001,0.000378,30]
[313300677,1707120642896,-1500.0,0.000378,30]
[313300678,1707120643006,-6966.16350024,0.000378,30]
[313300679,1707120643019,-24960.9,0.000378,2]
[313300680,1707120643029,-273.78091404,0.00037863,5]
[313300681,1707120643039,-189.40059502,0.0003787,2]
[313300682,1707120643048,-302.3718739,0.00037872,4]
[313300683,1707120643058,-155.16134665,0.00037872,4]
[313300685,1707120643067,-1267.86918025,0.00037872,4]
[313300687,1707120643079,-3640.7371751,0.00037872,4]
[313300689,1707120643089,-6051.93504294,0.00037872,4]
[313300691,1707120643098,-1799.65008305,0.00037873,4]
[313300693,1707120643107,-4025.37284515,0.00037873,2]
[313300695,1707120643116,-1488.187867,0.00037874,2]
[313300697,1707120643125,-2735.4127343,0.00037874,2]
[313300699,1707120643134,-156.8472331,0.00037874,2]
[313300701,1707120643143,-4138.5893714,0.00037874,2]
[313300703,1707120643152,-73265.97688553,0.00037874,2]
[313300713,1707120645710,-1033.40313034,0.00037874,2]
[313300714,1707120645821,-657.9988095,0.00037874,2]
[313300715,1707120645832,-278.24112876,0.00037874,2]
[313300716,1707120645876,-2379.54643416,0.00037874,2]
[313300717,1707120645937,-319.61407447,0.00037874,2]
[313300718,1707120646021,-1571.76507384,0.00037874,2]
[313300719,1707120646032,-459.5691353,0.00037874,2]
[313300720,1707120646041,-690.8421386,0.00037874,2]
[313300721,1707120646050,-228.92317196,0.00037878,2]
[313300722,1707120646059,-310.0,0.00037878,4]
[313300723,1707120646069,-80735.87791999,0.00037878,2]
[313300724,1707120646081,-411.06267295,0.00037878,2]
[313300766,1707121831866,-1.77737234,0.00027998,2]
[313300767,1707121831877,-521.45896239,0.00027998,2]
[313300768,1707121831886,-282.96674153,0.00028,2]
[313300769,1707121831909,-432.47374657,0.00028,2]
[313300770,1707121832021,-399.90157605,0.00028,2]
[313300771,1707121832081,-1723.97808,0.00028,2]
[313300772,1707121832093,-3311.04755706,0.00028,2]
[313300773,1707121832104,-970.36742667,0.00028,2]
[313300774,1707121832115,-409.96149532,0.00028,2]
[313300775,1707121832139,-358.0003321,0.00027997,2]
[313300776,1707121832148,-150.47928903,0.00028,2]
[313300777,1707121832160,-894.62814844,0.00028,2]
[313300778,1707121832171,-616.35924009,0.00028,2]
[313300779,1707121832182,-4313.9106,0.00028,2]
[313300812,1707121837870,-1149.53041513,0.00028,2]
[313300817,1707121838037,-1293.51302225,0.00028,2]
[313300818,1707121838147,-186126.48570173,0.00028,2]
[313300819,1707121838158,-868.58057304,0.00028,2]
[313300820,1707121838205,-8290.80868052,0.00028,2]
[313300829,1707121840761,-397.52,0.00028,2]
[313300830,1707121840773,-933.39333219,0.00028,2]
[313300831,1707121841222,-1707.19950581,0.00028,2]
[313300832,1707121841278,-1748.42311518,0.00028,2]
[313300833,1707121841290,-924.88640005,0.00028,2]
[313300834,1707121841301,-679.8931593,0.00028,2]
[313300835,1707121841334,-1457.37970759,0.00028,2]
[313300836,1707121841346,-313.6810005,0.00028,2]
[313300888,1707121842906,-614.29174979,0.00028,2]
[313300890,1707121842918,-21864.23657528,0.00028,2]
[313300891,1707121843072,-5049.71972572,0.00028,2]
[313300892,1707121843182,-652.20937819,0.00028,2]
[313300893,1707121843239,-2085.73552972,0.00028,2]
[313300894,1707121843248,-155.0,0.0003,2]
[313300895,1707121843258,-1156.935985,0.0003098,2]
[313300896,1707121843268,-1000.0,0.00031,2]
[313300897,1707121843277,-150.0,0.000318,2]
[313300898,1707121843286,-13873.73917324,0.00034,4]
[313300899,1707121843296,-292.8,0.00034067,2]
[313300900,1707121843306,-2372.0,0.000346,3]
[313300901,1707121843315,-156.8472331,0.00034642,2]
[313300902,1707121843325,-16039.0,0.000347,3]
[313300903,1707121843334,-13690.40631751,0.00034709,5]
[313300904,1707121843350,-411.7493109,0.00034709,5]
[313300905,1707121845913,-1079.69844227,0.00034709,5]
[313300906,1707121845925,-4825.96615741,0.00034709,5]
[313300907,1707121845934,-1000.0,0.00034738,2]
[313300908,1707121845943,-1593.92637042,0.0003474,2]
[313300909,1707121845954,-33424.9088541,0.0003474,2]
[313300910,1707121845965,-16889.09711827,0.0003474,2]
[313300911,1707121845976,-2719.75466467,0.0003474,2]
[313300912,1707121846022,-33927.54152736,0.0003474,2]
[313300913,1707121846032,-29288.83903132,0.00034742,10]
[313300914,1707121846041,-3771.06122708,0.00034742,10]
[313300915,1707121846050,-8781.96059105,0.00034742,10]
[313300916,1707121846059,-646.46,0.00035433,2]
[313300917,1707121846068,-208.0,0.00035499,2]
[313300918,1707121846077,-250.0,0.0003567,2]
[313300919,1707121846085,-292.8,0.00036331,2]
[313300920,1707121846094,-353.54,0.00036346,2]
[313300921,1707121846103,-150.0,0.00036406,2]
[313300922,1707121846112,-317.86673873,0.00036414,7]
[313300923,1707121846122,-315.68,0.00036642,2]
[313300924,1707121846130,-165.92,0.00036816,2]
[313300925,1707121846140,-317.86673873,0.00037017,7]
[313300926,1707121846149,-158.69023535,0.00037499,4]
[313300927,1707121846158,-3281.26752158,0.000375,2]
[313300928,1707121846167,-151.14314895,0.00037501,2]
[313300929,1707121846176,-942.2194,0.0003778,2]
[313300930,1707121846185,-187.84581641,0.0003778,2]
[313300931,1707121846195,-200.0,0.000378,12]
[313300932,1707121846204,-288.18280019,0.000378,12]
[313300933,1707121846239,-380.7396679,0.00034708,4]
[313300934,1707121846248,-11.81719981,0.000378,12]
[313300935,1707121846257,-384.6730849,0.00037874,2]
[313300936,1707121846266,-1788.1037888,0.00037874,2]
[313300937,1707121846275,-6868.966462,0.00037874,2]
[313300938,1707121846284,-5279.29884348,0.00037874,2]
[313300964,1707123032056,-332.67809598,0.00031634,4]
[313300966,1707123032066,-454.6453534,0.00031635,10]
[313300968,1707123032075,-155.0,0.00031636,2]
[313300970,1707123032084,-286.05451759,0.00031637,4]
[313300972,1707123032093,-407.5623455,0.00031637,2]
[313300974,1707123032102,-203.61980148,0.00031637,4]
[313300976,1707123032111,-191.19015391,0.00031793,4]
[313300978,1707123032120,-20532.64847919,0.00031795,2]
[313300980,1707123032129,-2393.10735928,0.00031796,4]
[313300982,1707123032138,-1747.47710801,0.00031798,4]
[313300983,1707123032147,-499.99,0.00031798,2]
[313300986,1707123032156,-258.63,0.000318,2]
[313300988,1707123032166,-499.08968735,0.00032,2]
[313300990,1707123032175,-271.04,0.00033463,2]
[313300992,1707123032185,-17484.0,0.000346,3]
[313300994,1707123032194,-2457.0,0.000346,3]
[313300996,1707123032204,-2005.88709442,0.00034742,10]
[313300998,1707123032213,-8323.72149899,0.00034742,10]
[313301000,1707123032223,-50000.0,0.00034742,10]
[313301002,1707123032233,-7057.24009117,0.00034742,10]
[313301004,1707123032242,-2808.99404633,0.00034742,10]
[313301006,1707123032251,-223.28597522,0.00035248,14]
[313301008,1707123032260,-517.17,0.00035249,2]
[313301010,1707123032269,-250.0,0.000353,2]
[313301012,1707123032282,-426.8,0.00035336,4]
[313301014,1707123032291,-263.06,0.00035355,2]
[313301016,1707123032300,-150.0,0.00035473,2]
[313301018,1707123032309,-158.43,0.0003558,2]
[313301020,1707123032318,-271.04,0.00035727,2]
[313301021,1707123032328,-482.83,0.00035805,2]
[313301022,1707123032337,-165.92,0.00035918,2]
[313301023,1707123032346,-296.67562281,0.00036199,7]
[313301024,1707123032355,-296.67562281,0.00036417,7]
[313301025,1707123032364,-208.0,0.00036583,2]
[313301026,1707123032373,-296.67562281,0.00036652,7]
[313301027,1707123032383,-296.67562281,0.0003686,7]
[313301028,1707123032393,-263.06,0.00036999,2]
[313301029,1707123032402,-496.18273898,0.00036999,4]
[313301030,1707123032411,-1261.84081391,0.00036999,4]
[313301031,1707123032420,-512.33653769,0.00037,2]
[313301032,1707123032428,-9034.29373744,0.00037,3]
[313301033,1707123032437,-2014.51508621,0.00037,2]
[313301034,1707123032446,-296.67562281,0.00037163,7]
[313301035,1707123032456,-151.14314895,0.00037501,2]
[313301036,1707123032465,-296.67562281,0.0003775,7]
[313301037,1707123032474,-213.91834431,0.0003775,14]
[313301038,1707123032483,-2252.81932577,0.00037774,2]
[313301039,1707123032499,-2479.35747423,0.00037774,2]
[313301040,1707123032508,-3443.3348,0.00037774,2]
[313301041,1707123032516,-486.97391164,0.0003778,2]
[313301042,1707123032532,-200.0,0.000378,12]
[313301043,1707123032542,-215.84825104,0.00037834,2]
[313301044,1707123032551,-265.79545857,0.0003787,4]
[313301045,1707123032560,-271.28353299,0.0003787,2]
[313301046,1707123032570,-289.31995548,0.00037871,4]
[313301047,1707123032579,-1234.42840706,0.00037871,4]
[313301048,1707123032588,-157.14032614,0.00037872,4]
[313301049,1707123032597,-155.53265887,0.00037872,4]
[313301050,1707123032606,-164.74290655,0.00037872,4]
[313301051,1707123032615,-528.39695285,0.00037872,4]
[313301052,1707123032624,-155.0,0.00037872,4]
[313301053,1707123032633,-295.71825411,0.00037872,4]
[313301054,1707123032642,-2909.36169139,0.00037872,4]
[313301055,1707123032651,-271.66179586,0.00037872,4]
[313301056,1707123032661,-599.95480916,0.00037872,4]
[313301057,1707123032678,-375.13583149,0.00037872,4]
[313301058,1707123032687,-315.18305531,0.00037872,4]
[313301059,1707123032696,-233.3484501,0.00037872,4]
[313301060,1707123032705,-343.09067253,0.00037872,4]
[313301061,1707123032729,-285.0,0.00037872,4]
[313301062,1707123038054,-261.6596807,0.00037872,4]
[313301063,1707123038160,-608.0627175,0.00037872,4]
[313301064,1707123038171,-864.377036,0.00037872,4]
[313301065,1707123038182,-653.67901261,0.00037872,4]
[313301066,1707123038193,-239.92233333,0.00037872,4]
[313301067,1707123038202,-155.88364074,0.00037872,4]
[313301068,1707123038210,-172.02741418,0.00037872,4]
[313301069,1707123038394,-157.86507985,0.00037872,4]
[313301070,1707123038404,-248.98611327,0.00037872,4]
[313301071,1707123038413,-157.96709205,0.00037872,4]
[313301072,1707123038422,-155.45202334,0.00037872,4]
[313301073,1707123038431,-234.07490402,0.00037872,4]
[313301075,1707123038440,-502.24649867,0.00037872,4]
[313301077,1707123038450,-155.0,0.00037872,4]
[313301079,1707123038459,-155.92316606,0.00037872,4]
[313301081,1707123038467,-164.99634728,0.00037872,4]
[313301083,1707123038476,-500.0,0.00037872,4]
[313301084,1707123038485,-284.10404844,0.00037872,4]
[313301086,1707123038494,-233.46806501,0.00037872,4]
[313301089,1707123038503,-910.69149582,0.00037872,4]
[313301091,1707123038514,-2971.93197188,0.00037872,4]
[313301093,1707123038524,-3692.89080952,0.00037872,4]
[313301094,1707123038534,-247.74466246,0.00037872,4]
[313301095,1707123038543,-285.80236375,0.00037872,4]
[313301096,1707123038552,-418.50685884,0.00037873,2]
[313301097,1707123038561,-74420.1871932,0.00037873,2]
[313301098,1707123038569,-1214.3696817,0.00037874,2]
[313301099,1707123038578,-4652.797779,0.00037874,2]
[313301100,1707123038587,-78597.8560597,0.00037874,2]
[313301101,1707123038596,-459.56913737,0.00037874,2]
[313301102,1707123038605,-812.70271394,0.00037877,2]
[313301103,1707123038614,-1313.38044458,0.00037878,4]
[313301104,1707123038623,-228.92317196,0.00037878,2]
[313301105,1707123038632,-2000.0,0.00037878,2]
[313301106,1707123038641,-221.90392722,0.00037879,14]
[313301107,1707123038650,-6385.38631787,0.00037879,4]
[313301108,1707123038659,-35341.94878417,0.0003788,2]
[313301109,1707123038674,-4251.41490306,0.0003788,2]
[313301110,1707123038685,-1066.06852085,0.0003788,2]
[313301111,1707123038696,-780.54963514,0.0003788,2]
[313301112,1707123038707,-7504.74647891,0.0003788,2]
[313301113,1707123038730,-2125.0,0.0003788,2]
[313301114,1707123038742,-966.45466528,0.0003788,2]
[313301115,1707123038753,-363.25872601,0.0003788,2]
[313301120,1707123040566,-764.30322736,0.0003788,2]
[313301121,1707123040731,-912.25245703,0.0003788,2]
[313301146,1707123043136,-270.7643,0.00037773,2]
[313301148,1707123043145,-356.17340624,0.00037879,2]
[313301150,1707123043155,-305.42510294,0.0003788,2]
[313301151,1707123043397,-812.70271393,0.00037877,2]
[313301153,1707123043407,-263721.78359753,0.0003788,2]
[313301154,1707123043417,-155.0,0.0003788,4]
[313301155,1707123043426,-155.30061745,0.0003788,4]
[313301156,1707123043435,-157.2176121,0.0003788,2]
[313301157,1707123043444,-1000.0,0.000379,2]
[313301159,1707123043454,-271.04,0.00037991,2]
[313301161,1707123043463,-1288.69034469,0.00038,2]
[313301162,1707123043472,-150.0,0.00038215,2]
[313301164,1707123043481,-1055.8271587,0.0003822,2]
[313301166,1707123043490,-200.0,0.000383,13]
[313301167,1707123043499,-296.67562281,0.00038326,7]
[313301168,1707123043509,-152.3,0.00038356,2]
[313301169,1707123043518,-296.67562281,0.00038405,7]
[313301170,1707123043527,-175.0,0.00038505,2]
[313301171,1707123043535,-296.67562281,0.00038538,7]
[313301172,1707123043544,-263.06,0.00038642,2]
[313301173,1707123043553,-300.0,0.000388,13]
[313301174,1707123043562,-200.0,0.000388,13]
[313301175,1707123043571,-158.16987477,0.0003888,2]
[313301176,1707123043580,-180.0,0.00038972,2]
[313301177,1707123043590,-296.67562281,0.00038993,7]
[313301178,1707123043603,-457.78772204,0.00039011,4]
[313301179,1707123043612,-200.0,0.000393,14]
[313301180,1707123043621,-486.97391163,0.00039308,2]
[313301181,1707123043630,-2868.0,0.00039403,2]
[313301182,1707123043639,-4199.767,0.00039403,2]
[313301183,1707123043649,-8164.866,0.00039403,2]
[313301184,1707123043658,-2918.0,0.00039403,2]
[313301185,1707123043667,-2283.0,0.00039403,2]
[313301186,1707123043676,-150.0,0.00039403,2]
[313301187,1707123043685,-152.3,0.00039635,2]
[313301188,1707123043694,-517.17,0.00039655,2]
[313301189,1707123043703,-300.0,0.000398,14]
[313301190,1707123043712,-200.0,0.000398,14]
[313301191,1707123043721,-296.67562281,0.00039902,7]
[313301192,1707123043733,-2203.54122311,0.0004,4]
[313301193,1707123043742,-350.661999,0.0004,120]
[313301194,1707123043751,-309.95488746,0.0004,4]
[313301195,1707123043760,-300.0,0.0004,30]
[313301196,1707123043771,-877.47624049,0.0004,5]
[313301197,1707123043780,-167.70807096,0.0004,4]
[313301198,1707123043789,-300.0,0.000402,30]
[313301199,1707123043798,-271.04,0.00040255,2]
[313301200,1707123043807,-482.83,0.00040281,2]
[313301201,1707123043816,-263.06,0.00040286,2]
[313301202,1707123043826,-300.0,0.000404,30]
[313301203,1707123043835,-1000.0,0.000404,3]
[313301204,1707123043844,-300.0,0.000406,30]
[313301205,1707123043853,-1000.0,0.000406,2]
[313301206,1707123043862,-296.67562281,0.00040625,30]
[313301207,1707123043871,-203.0,0.000407,30]
[313301208,1707123043880,-296.67562281,0.00040795,30]
[313301209,1707123043889,-300.0,0.000408,30]
[313301210,1707123043898,-579.81875,0.000408,16]
[313301211,1707123043907,-486.97391163,0.00040835,2]
[313301212,1707123043916,-296.67562281,0.00040867,30]
[313301213,1707123043925,-296.67562281,0.00040907,30]